bitfinex/quotes_SOLUSD_20241001
["timestamp","ask_amount","ask_price","bid_price","bid_amount"]
[1727745789305,6.4691,154.58,154.54,6.4707]
[1727745790110,6.4691,154.58,154.53,16.1443]
[1727745790313,6.4691,154.58,154.53,22.6155]
[1727745791783,20.0,154.62,154.53,16.1443]
[1727745791990,6.4683,154.6,154.56,6.4699]
[1727745792903,6.4683,154.6,154.53,34.2464926]
[1727745793208,8.08615421,154.59,154.54,6.4707]
[1727745793408,8.08647427,154.58,154.53,16.1443]
[1727745793614,6.4696,154.57,154.53,16.1443]
[1727745793908,6.4692,154.58,154.53,22.6153]
[1727745796114,6.4688,154.59,154.53,16.1443]
[1727745796315,6.4682,154.61,154.55,6.4703]
[1727745797295,1.61720725,154.6,154.55,6.4703]
[1727745797915,1.61720725,154.6,154.53,16.1443]
[1727745798210,6.4695,154.57,154.49,34.5517926]
[1727745798518,6.4695,154.57,154.52,6.4716]
[1727745801913,1.61754409,154.56,154.52,6.4716]
[1727745802598,6.4695,154.57,154.52,6.4716]
[1727745803116,6.4695,154.57,154.53,6.4712]
[1727745803819,1.61760389,154.56,154.53,6.4712]
[1727745805212,15.3402,154.59,154.54,6.4704]
[1727745805213,6.4687,154.59,154.54,6.4704]
[1727745805602,6.4685,154.6,154.55,6.47]
[1727745806222,1.61730872,154.59,154.55,6.47]
[1727745806405,6.4685,154.6,154.55,6.47]
[1727745814927,6.4679,154.61,154.56,18.06797168]
[1727745815417,1.61721614,154.6,154.56,18.06797168]
[1727745815621,6.4679,154.61,154.56,18.06797168]
[1727745821229,16.1658,154.65,154.56,11.59817168]
[1727745821532,6.4666,154.64,154.59,11.59817168]
[1727745821705,6.4666,154.64,154.59,18.06687168]
[1727745822216,6.4662,154.65,154.6,6.4682]
[1727745822623,6.4662,154.65,154.6,11.59817168]
[1727745822929,6.4662,154.65,154.61,6.4678]
[1727745823109,6.4662,154.65,154.6,18.06627168]
[1727745824321,1.6167663,154.64,154.6,6.4681]
[1727745825018,6.4662,154.65,154.6,6.4681]
[1727745825726,6.4654,154.67,154.62,18.06527168]
[1727745825928,6.4654,154.67,154.63,11.59817168]
[1727745826138,6.4654,154.67,154.62,6.4671]
[1727745826433,1.61669748,154.66,154.61,15.0054]
[1727745826614,6.4667,154.64,154.61,15.0054]
[1727745829929,1.61669748,154.66,154.61,15.0054]
[1727745829930,6.4663,154.65,154.61,15.0054]
[1727745832135,6.4663,154.65,154.61,21.4732]
[1727745832339,6.4658,154.66,154.62,11.59817168]
[1727745832912,16.5418,154.71,154.62,11.59817168]
[1727745833114,6.4645,154.69,154.64,18.06467168]
[1727745834259,70.54104881,154.75,154.66,11.59817168]
[1727745834421,6.4642,154.7,154.66,18.06387168]
[1727745835936,6.4642,154.7,154.65,6.4661]
[1727745836238,6.4642,154.7,154.65,18.06427168]
[1727745839616,23.776884,154.73,154.65,11.59817168]
[1727745839822,6.4648,154.69,154.65,11.59817168]
[1727745840561,6.4636,154.72,154.67,33.84077168]
[1727745840767,14.20309274,154.76,154.67,33.84077168]
[1727745840768,7.81139274,154.76,154.69,11.59817168]
[1727745841044,16.1522,154.78,154.69,11.59817168]
[1727745841234,6.4633,154.72,154.67,15.7774]
[1727745841438,6.4633,154.72,154.67,27.37557168]
[1727745841639,8.30100154,154.77,154.67,33.84047168]
[1727745841837,6.68513464,154.77,154.69,11.59817168]
[1727745842029,6.4616,154.76,154.71,18.06177168]
[1727745843843,1.61559249,154.79,154.67,15.7774]
[1727745843844,8.07759254,154.75,154.7,6.464]
[1727745844144,1.61584408,154.74,154.67,15.7774]
[1727745844350,23.776884,154.73,154.63,27.54927168]
[1727745844540,6.4646,154.69,154.63,27.54927168]
[1727745844733,6.4641,154.7,154.65,6.4661]
[1727745849756,6.465,154.68,154.63,22.418]
[1727745850833,39.936784,154.71,154.63,15.9511]
[1727745851056,23.776884,154.69,154.63,15.9511]
[1727745851356,6.4658,154.66,154.63,15.9511]
[1727745851733,20.0,154.7,154.63,15.9511]
[1727745851935,6.4649,154.69,154.63,22.4178]
[1727745853463,6.4649,154.69,154.63,15.9511]
[1727745853630,6.4649,154.69,154.64,6.4666]
[1727745857138,8.08144999,154.68,154.63,22.4181]
[1727745857466,23.776884,154.72,154.63,22.4181]
[1727745857467,6.4659,154.66,154.63,15.9511]
[1727745857636,6.4663,154.65,154.63,15.9511]
[1727745858555,6.4658,154.66,154.63,15.9511]
[1727745859947,16.161,154.7,154.59,22.5022]
[1727745860140,45.39366301,154.69,154.59,22.5022]
[1727745860658,6.4663,154.65,154.6,6.4682]
[1727745860834,1.61676727,154.68,154.59,16.0339]
[1727745861037,6.467,154.63,154.59,16.0339]
[1727745861448,1.61689669,154.65,154.59,16.0339]
[1727745861658,6.4665,154.65,154.59,16.0339]
[1727745861839,20.0,154.7,154.6,18.09902851]
[1727745862043,25.39351238,154.69,154.62,6.4673]
[1727745862263,25.39351238,154.69,154.6,18.09902851]
[1727745862468,6.4658,154.66,154.61,6.4677]
[1727745863541,1.61663063,154.65,154.59,16.0339]
[1727745863747,6.4662,154.65,154.59,16.0339]
[1727745863941,1.61676171,154.64,154.6,6.4681]
[1727745864151,1.61676171,154.64,154.59,16.0339]
[1727745864343,1.61693125,154.67,154.59,16.0339]
[1727745864653,6.4675,154.62,154.59,16.0339]
[1727745864857,30.243884,154.64,154.59,16.0339]
[1727745865057,8.08410952,154.63,154.59,16.0339]
[1727745865443,1.61700952,154.63,154.59,16.0339]
[1727745865662,6.4674,154.62,154.57,6.4694]
[1727745865966,8.08445316,154.62,154.57,6.4694]
[1727745866871,6.4674,154.62,154.57,6.4694]
[1727745867567,6.4671,154.63,154.58,6.469]
[1727745867868,6.4662,154.65,154.6,6.4682]
[1727745869756,6.4657,154.67,154.61,16.0037]
[1727745869959,15.5369,154.71,154.63,6.467]
[1727745869960,6.4648,154.69,154.63,6.467]
[1727745870271,15.5369,154.71,154.63,6.467]
[1727745870272,6.4649,154.68,154.63,6.467]
[1727745870847,1.61645463,154.67,154.63,6.467]
[1727745871064,20.0,154.71,154.63,18.09902851]
[1727745871065,26.4641,154.71,154.63,18.09902851]
[1727745871245,6.4641,154.7,154.65,6.4661]
[1727745871874,6.4633,154.72,154.67,6.4652]
[1727745872371,6.4633,154.72,154.67,22.4689]
[1727745873876,6.4628,154.74,154.69,6.4644]
[1727745874058,6.462,154.75,154.7,6.464]
[1727745874956,6.4608,154.78,154.73,6.4627]
[1727745875252,8.07697517,154.77,154.73,16.0037]
[1727745875460,1.61554337,154.76,154.73,16.0037]
[1727745875665,1.61558606,154.8,154.73,16.0037]
[1727745876574,21.61558606,154.8,154.73,16.0037]
[1727745877072,6.4617,154.76,154.73,16.0037]
[1727745878463,6.4612,154.77,154.73,16.0037]
[1727745880773,1.61550945,154.76,154.73,16.0037]
[1727745881157,1.61551445,154.77,154.73,16.0037]
[1727745882075,6.4616,154.76,154.73,16.0037]
[1727745882674,23.776884,154.8,154.73,16.0037]
[1727745883058,6.6325,154.84,154.73,16.0037]
[1727745883255,6.4604,154.79,154.74,6.4624]
[1727745883873,6.4604,154.79,154.74,12.5015]
[1727745884485,6.4599,154.8,154.75,6.4619]
[1727745886058,1.61519986,154.83,154.74,26.12783549]
[1727745886267,6.4599,154.8,154.75,6.4619]
[1727745887276,1.61520003,154.79,154.74,6.0391]
[1727745887584,6.4608,154.78,154.74,6.0391]
[1727745887782,6.4608,154.78,154.74,12.5015]
[1727745888382,6.4608,154.78,154.74,6.0391]
[1727745888558,6.4604,154.79,154.74,12.5014]
[1727745889394,1.61524454,154.81,154.74,12.5014]
[1727745889690,6.4612,154.77,154.74,6.0391]
[1727745890058,6.4607,154.79,154.74,6.0391]
[1727745890256,1.61533407,154.78,154.74,6.0391]
[1727745890990,1.61533407,154.78,154.74,12.5015]
[1727745895268,6.4607,154.79,154.74,12.5015]
[1727745898391,1.61524888,154.78,154.74,6.0391]
[1727745898581,6.4608,154.78,154.74,6.0391]
[1727745900071,6.4604,154.79,154.74,12.5014]
[1727745900280,6.4604,154.79,154.75,19.31734225]
[1727745900597,6.46,154.8,154.76,12.85534225]
[1727745900992,1.61520045,154.79,154.75,6.462]
[1727745901192,1.61520045,154.79,154.74,6.0391]
[1727745901495,6.4609,154.78,154.74,18.89444225]
[1727745902070,1.61532805,154.81,154.74,18.89444225]
[1727745902277,1.61532805,154.81,154.75,12.85534225]
[1727745902278,20.0,154.81,154.75,12.85534225]
[1727745902475,6.46,154.8,154.75,19.31724225]
[1727745904282,8.07570205,154.79,154.75,19.31724225]
[1727745904481,6.4605,154.79,154.75,12.85534225]
[1727745904689,1.61523565,154.78,154.73,16.0037]
[1727745904893,6.4616,154.76,154.73,16.0037]
[1727745905589,6.4612,154.77,154.73,16.0037]
[1727745905896,20.0,154.8,154.74,19.31774225]
[1727745905897,6.4607,154.79,154.74,19.31774225]
[1727745906274,6.4599,154.8,154.75,6.462]
[1727745906479,6.4591,154.82,154.78,12.85534225]
[1727745906804,1.61500936,154.81,154.78,12.85534225]
[1727745906978,8.07450936,154.81,154.76,25.40184225]
[1727745907177,6.4595,154.81,154.77,6.4611]
[1727745907686,2.45685066,154.85,154.77,6.4611]
[1727745908003,6.4591,154.82,154.77,6.4611]
[1727745908612,1.61500218,154.81,154.77,6.4611]
[1727745909094,8.07410223,154.82,154.77,6.4611]
[1727745909282,6.4591,154.82,154.78,12.85534225]
[1727745909603,6.4591,154.82,154.78,19.31604225]
[1727745911193,6.4591,154.82,154.76,6.085]
[1727745911194,6.4599,154.8,154.76,6.085]
[1727745912591,23.776884,154.84,154.76,6.085]
[1727745912810,6.4595,154.81,154.76,12.5462]
[1727745913189,1.61501476,154.83,154.73,16.0037]
[1727745913190,1.61501874,154.8,154.73,28.85904225]
[1727745913495,1.61522214,154.82,154.73,16.0037]
[1727745913806,20.0,154.8,154.73,16.0037]
[1727745914018,6.4621,154.75,154.73,16.0037]
[1727745914301,5.9621,154.75,154.73,16.0037]
[1727745914884,6.4624,154.74,154.69,15.6015]
[1727745915198,6.4624,154.74,154.69,22.0656]
[1727745915395,6.462,154.75,154.7,6.464]
[1727745915607,8.07811364,154.74,154.69,15.6015]
[1727745915916,6.4623,154.75,154.69,22.0658]
[1727745916211,23.776884,154.77,154.69,22.0658]
[1727745916415,6.4625,154.74,154.69,22.0658]
[1727745916709,1.61581505,154.73,154.69,22.0658]
[1727745917508,6.4625,154.74,154.69,22.0658]
[1727745918397,8.07871545,154.73,154.69,15.6015]
[1727745918822,6.4629,154.73,154.69,15.6015]
[1727745926520,39.928584,154.79,154.69,15.6015]
[1727745927701,23.776884,154.77,154.69,15.6015]
[1727745927901,1.61579489,154.76,154.69,15.6015]
[1727745928109,6.4623,154.75,154.7,6.464]
[1727745928320,1.61579627,154.74,154.69,15.6015]
[1727745928518,6.4633,154.72,154.69,15.6015]
[1727745928818,6.4629,154.73,154.69,15.6015]
[1727745929019,1.61598106,154.72,154.69,15.6015]
[1727745932317,6.4629,154.73,154.69,15.6015]
[1727745933722,20.0,154.76,154.69,15.6015]
[1727745933930,6.4623,154.75,154.7,6.4641]
[1727745934230,6.4617,154.76,154.71,6.4635]
[1727745934524,6.4613,154.77,154.7,20.09947269]
[1727745934694,16.15,154.8,154.72,6.4632]
[1727745934897,6.4616,154.76,154.71,6.4636]
[1727745935121,8.07764306,154.75,154.71,6.4636]
[1727745935304,6.462,154.75,154.71,6.4636]
[1727745935502,6.4628,154.73,154.69,34.92868122]
[1727745935821,8.07924723,154.72,154.69,15.6015]
[1727745936120,6.4638,154.71,154.69,15.6015]
[1727745936500,6.4633,154.72,154.69,15.6015]
[1727745936705,1.61605572,154.73,154.69,15.6015]
[1727745937523,8.07915572,154.73,154.69,15.6015]
[1727745937736,8.07930771,154.72,154.69,15.6015]
[1727745937904,6.4633,154.72,154.69,15.6015]
[1727745938098,6.4628,154.74,154.69,15.6015]
[1727745938315,6.4623,154.75,154.69,15.6015]
[1727745938516,6.4623,154.75,154.7,6.4639]
[1727745940010,6.4617,154.76,154.71,6.4635]
[1727745940425,23.776884,154.77,154.71,6.4635]
[1727745940630,6.462,154.75,154.71,6.4635]
[1727745943714,6.462,154.75,154.69,35.70368136]
[1727745943914,6.462,154.75,154.7,6.464]
[1727745944413,1.61571447,154.74,154.7,6.464]
[1727745944621,6.462,154.75,154.7,6.464]
[1727745946331,1.61571376,154.74,154.7,6.464]
[1727745947240,6.462,154.75,154.7,6.464]
[1727745947927,6.69732531,154.82,154.75,22.838]
[1727745948134,1.61532456,154.83,154.76,20.10218136]
[1727745948330,7.2999265,154.85,154.75,16.376]
[1727745948331,0.8418265,154.85,154.78,20.10218136]
[1727745948918,6.4591,154.82,154.76,20.10218136]
[1727745949235,6.46,154.8,154.75,16.376]
[1727745949538,6.46,154.8,154.75,42.93998136]
[1727745949742,21.61503546,154.84,154.75,42.93998136]
[1727745949942,6.4595,154.81,154.75,42.93998136]
[1727745950426,1.61503546,154.84,154.75,36.47818136]
[1727745950625,6.4591,154.82,154.76,6.4612]
[1727745950821,8.07413251,154.82,154.76,6.4612]
[1727745951741,6.4591,154.82,154.76,6.4612]
[1727745952125,1.61503199,154.81,154.76,26.53533169]
[1727745952826,6.4591,154.82,154.76,26.53533169]
[1727745954352,1.61502698,154.81,154.76,26.53533169]
[1727745954825,1.61502698,154.81,154.75,22.838]
[1727745955020,6.4603,154.8,154.75,16.376]
[1727745955434,8.0756805,154.79,154.75,16.376]
[1727745955731,6.4605,154.79,154.75,16.376]
[1727745955924,20.0,154.84,154.75,16.376]
[1727745955925,6.4608,154.78,154.75,16.376]
[1727745956735,6.4612,154.77,154.73,6.3221]
[1727745957349,6.4608,154.78,154.73,12.7849]
[1727745957722,1.61541808,154.77,154.73,12.7849]
[1727745958746,6.4608,154.78,154.73,12.7849]
[1727745958947,6.4608,154.78,154.73,32.85903169]
[1727745960651,6.4598,154.81,154.76,6.4614]
[1727745961044,0.8418265,154.85,154.76,15.4665]
[1727745961221,0.8418265,154.85,154.77,20.07413169]
[1727745961427,1.61490884,154.84,154.77,20.07413169]
[1727745961744,6.459,154.83,154.77,6.4611]
[1727745961929,6.459,154.83,154.78,6.4605]
[1727745962448,1.61484576,154.82,154.78,6.4605]
[1727745962652,6.459,154.83,154.78,6.4605]
[1727745963032,8.07402922,154.82,154.77,26.53523169]
[1727745963241,6.46,154.8,154.76,15.4665]
[1727745964375,1.61521756,154.84,154.76,15.4665]
[1727745964547,6.4591,154.82,154.76,15.4665]
[1727745964841,1.61504601,154.83,154.76,15.4665]
[1727745964842,8.07374601,154.83,154.78,6.4607]
[1727745965627,1.61504601,154.83,154.79,6.46]
[1727745965939,6.4583,154.84,154.79,6.46]
[1727745966140,8.07354432,154.83,154.79,6.46]
[1727745966336,6.4587,154.83,154.79,6.46]
[1727745968149,6.4595,154.82,154.77,6.4611]
[1727745968355,8.07449863,154.81,154.77,6.4611]
[1727745968533,6.4595,154.81,154.77,6.4611]
[1727745968733,6.4601,154.8,154.76,15.4665]
[1727745968942,6.4595,154.81,154.76,21.9279]
[1727745969433,1.61508685,154.83,154.76,15.4665]
[1727745969434,6.4599,154.8,154.76,15.4665]
[1727745969634,6.4608,154.78,154.76,15.4665]
[1727745969843,16.1473,154.83,154.76,15.4665]
[1727745969844,8.07550359,154.8,154.76,15.4665]
[1727745970034,6.4602,154.8,154.76,15.4665]
[1727745970452,1.61520781,154.79,154.76,15.4665]
[1727745970746,6.4602,154.8,154.76,15.4665]
[1727745970954,8.07461307,154.82,154.76,21.9277]
[1727745971247,6.4597,154.81,154.76,21.9277]
[1727745973251,2.45688095,154.85,154.77,6.4611]
[1727745973451,6.4591,154.82,154.77,6.4611]
[1727745974446,1.61498076,154.83,154.78,6.4606]
[1727745974447,8.07368076,154.83,154.78,6.4606]
[1727745974656,6.4583,154.84,154.79,6.4602]
[1727745976257,8.07314562,154.84,154.79,6.4602]
[1727745976560,1.61484562,154.84,154.78,6.4607]
[1727745976759,1.61484562,154.84,154.76,15.4665]
[1727745977062,6.4596,154.81,154.76,21.9277]
[1727745977367,6.4596,154.81,154.77,6.4611]
[1727745979445,0.8418265,154.85,154.79,6.4602]
[1727745979653,7.2999265,154.85,154.8,6.4596]
[1727745980360,1.61477283,154.84,154.8,6.4596]
[1727745980553,0.8418265,154.85,154.81,6.4594]
[1727745982343,0.8418265,154.85,154.82,15.0768]
[1727745982754,0.8418265,154.85,154.82,21.5358]
[1727745983361,0.8418265,154.85,154.82,15.0768]
[1727745984164,7.2997265,154.85,154.82,15.0768]
[1727745986181,7.2997265,154.85,154.79,6.0384]
[1727745986182,6.4586,154.83,154.79,6.0384]
[1727745986347,8.0739278,154.82,154.78,16.1535]
[1727745986670,1.61498467,154.81,154.78,16.1535]
[1727745987452,6.46,154.8,154.78,16.1535]
[1727745987641,1.61518068,154.79,154.75,12.845]
[1727745988268,1.61518068,154.79,154.74,15.5514]
[1727745988444,6.4603,154.79,154.74,22.0137]
[1727745988642,20.0,154.83,154.74,15.5514]
[1727745988846,1.61518498,154.82,154.74,15.5514]
[1727745989568,6.4595,154.81,154.76,6.4612]
[1727745989740,23.776884,154.84,154.75,20.08131701]
[1727745990143,1.61505631,154.83,154.75,20.08131701]
[1727745990659,6.4594,154.82,154.77,6.4611]
[1727745990866,8.07449596,154.82,154.77,6.4611]
[1727745991159,1.61494792,154.81,154.77,6.4611]
[1727745991477,6.4594,154.82,154.77,6.4611]
[1727745992271,1.61500379,154.81,154.77,6.4611]
[1727745992466,1.61500379,154.81,154.75,20.08131701]
[1727745992668,6.46,154.8,154.75,6.4619]
[1727745994260,6.4608,154.78,154.73,6.4625]
[1727745994575,6.4604,154.79,154.74,6.4624]
[1727745994757,6.46,154.8,154.75,6.4619]
[1727745995571,1.61523607,154.79,154.75,6.4619]
[1727745997463,6.46,154.8,154.75,26.54321701]
[1727745997868,1.61522296,154.79,154.75,26.54321701]
[1727745998883,6.46,154.8,154.75,26.54321701]
[1727745999565,20.0,154.83,154.75,26.54321701]
[1727745999566,20.0,154.83,154.75,20.08131701]
[1727745999784,1.61506285,154.82,154.73,31.01115049]
[1727745999974,1.61506285,154.82,154.75,6.462]
[1727746000291,6.4604,154.79,154.74,6.4624]
[1727746000593,6.4604,154.79,154.75,6.4619]
[1727746000767,1.61506285,154.82,154.75,6.4619]
[1727746000962,6.46,154.8,154.75,6.4619]
[1727746001162,1.61526657,154.79,154.75,6.4619]
[1727746001359,8.07566657,154.79,154.74,6.4623]
[1727746001571,1.61536517,154.78,154.74,6.4623]
[1727746001866,8.07616517,154.78,154.73,6.4627]
[1727746002083,1.61544029,154.77,154.73,13.74481774]
[1727746002588,6.4604,154.79,154.74,6.4623]
[1727746004774,1.61541086,154.78,154.74,6.4623]
[1727746005388,30.236684,154.81,154.75,6.462]
[1727746005728,8.0754153,154.8,154.75,6.462]
[1727746005990,6.4601,154.8,154.75,6.462]
[1727746006389,1.61531225,154.79,154.75,6.462]
[1727746006699,6.4601,154.8,154.75,6.462]
[1727746007094,1.61527316,154.79,154.75,6.462]
[1727746007701,6.4601,154.8,154.75,6.462]
[1727746007901,6.4595,154.81,154.76,6.4614]
[1727746008092,0.8418265,154.85,154.77,20.08131701]
[1727746008093,2.45686757,154.85,154.77,20.08131701]
[1727746008282,6.4592,154.82,154.77,26.54241701]
[1727746008995,6.4592,154.82,154.78,6.4607]
[1727746009203,0.8418265,154.85,154.77,20.08131701]
[1727746009419,1.6148715,154.84,154.77,20.08131701]
[1727746009587,8.0730715,154.84,154.79,6.4603]
[1727746012106,1.6148715,154.84,154.76,15.584]
[1727746012306,6.4596,154.81,154.76,22.0452]
[1727746012607,20.8418265,154.85,154.76,22.0452]
[1727746012608,1.61500858,154.8,154.76,15.584]
[1727746012791,6.4599,154.8,154.75,6.4619]
[1727746012986,1.61526742,154.79,154.75,6.4619]
[1727746014605,1.61526742,154.79,154.74,3.64795793]
[1727746014807,6.4595,154.81,154.76,6.4615]
[1727746016509,1.61526819,154.8,154.76,6.4615]
[1727746021622,6.4592,154.82,154.76,12.84880612]
[1727746021927,23.776884,154.84,154.78,12.84880612]
[1727746022322,6.459,154.83,154.78,19.30950612]
[1727746023417,1.61504489,154.82,154.78,19.30950612]
[1727746024297,1.61504489,154.82,154.77,12.84880612]
[1727746024492,6.4599,154.8,154.76,6.4612]
[1727746024703,1.61526993,154.79,154.76,6.4612]
[1727746025504,1.61526993,154.79,154.72,36.51744884]
[1727746025819,8.07566993,154.79,154.75,6.4619]
[1727746026021,1.61538471,154.78,154.75,6.4619]
[1727746026210,6.4599,154.8,154.75,6.4619]
[1727746026422,6.4609,154.78,154.74,6.4624]
[1727746026604,1.61554992,154.77,154.74,6.4624]
[1727746027626,6.4604,154.79,154.74,6.4624]
[1727746027922,1.6154561,154.78,154.74,6.4624]
[1727746030311,23.776884,154.77,154.72,6.4629]
[1727746030535,1.61577456,154.76,154.68,22.83549144]
[1727746030830,8.07737456,154.76,154.68,22.83549144]
[1727746031417,1.61577456,154.76,154.72,6.4632]
[1727746036336,8.07737456,154.76,154.69,20.08244884]
[1727746036531,6.4633,154.72,154.68,6.4649]
[1727746036733,1.61617723,154.71,154.68,6.4649]
[1727746037246,1.61617723,154.71,154.65,6.4658]
[1727746037432,6.4642,154.7,154.61,20.08244884]
[1727746037733,42.2031,154.75,154.6,15.4282]
[1727746037734,23.776884,154.68,154.6,15.4282]
[1727746038038,20.0,154.73,154.62,6.4674]
[1727746038039,8.08243046,154.67,154.62,6.4674]
[1727746038241,1.6167584,154.66,154.62,6.4674]
[1727746038549,20.0,154.71,154.61,20.08244884]
[1727746038717,6.465,154.68,154.61,20.08244884]
[1727746038920,1.61661321,154.67,154.63,6.4669]
[1727746039929,6.465,154.68,154.63,6.4669]
[1727746040744,20.0,154.71,154.63,20.08244884]
[1727746040949,6.3583,154.75,154.65,20.08244884]
[1727746041141,6.4633,154.72,154.66,6.4654]
[1727746041718,6.4633,154.72,154.67,6.4651]
[1727746044041,1.61622532,154.71,154.67,6.4651]
[1727746047531,8.08002532,154.71,154.66,6.4657]
[1727746047841,1.61633089,154.7,154.66,6.4657]
[1727746049742,1.61633089,154.7,154.67,6.4653]
[1727746049920,6.4633,154.72,154.67,6.4653]
[1727746052940,1.61622486,154.71,154.67,6.4653]
[1727746053238,6.4633,154.72,154.67,6.4653]
[1727746054141,6.3583,154.75,154.66,12.86626673]
[1727746054142,6.4628,154.74,154.68,19.33116673]
[1727746054348,6.4628,154.74,154.69,6.4643]
[1727746055661,6.463,154.73,154.68,19.33106673]
[1727746056626,1.61608609,154.72,154.68,19.33106673]
[1727746056821,1.61608609,154.72,154.68,6.4648]
[1727746061829,6.463,154.73,154.68,6.4648]
[1727746062323,1.61607684,154.72,154.68,6.4648]
[1727746063551,6.463,154.73,154.66,28.59616673]
[1727746063724,6.4625,154.74,154.7,6.4641]
[1727746064429,6.3215,154.79,154.7,6.4641]
[1727746064623,20.0,154.77,154.71,19.32986673]
[1727746064823,6.4617,154.76,154.71,19.32986673]
[1727746065035,16.1492,154.81,154.73,29.37646673]
[1727746065223,6.1902,154.83,154.73,29.37646673]
[1727746065429,6.4604,154.79,154.74,6.462]
[1727746065626,6.1902,154.83,154.75,12.86626673]
[1727746065851,6.4608,154.78,154.73,35.83926673]
[1727746066026,1.61551573,154.77,154.73,35.83926673]
[1727746066652,8.07671573,154.77,154.73,16.5102]
[1727746067254,6.4612,154.77,154.73,16.5102]
[1727746068440,8.07743522,154.76,154.71,6.4636]
[1727746068639,1.61566098,154.75,154.69,15.0018]
[1727746068858,6.4629,154.73,154.69,15.0018]
[1727746069034,1.61603311,154.72,154.69,15.0018]
[1727746070341,23.776884,154.76,154.69,15.0018]
[1727746070550,6.4624,154.75,154.69,21.4663]
[1727746071054,6.4626,154.74,154.69,21.4663]
[1727746074834,6.462,154.75,154.7,6.4637]
[1727746075654,6.4617,154.76,154.69,15.0018]
[1727746075851,6.4612,154.77,154.72,6.4632]
[1727746076342,1.61567952,154.76,154.72,6.4632]
[1727746078267,8.07737952,154.76,154.71,6.4636]
[1727746078455,1.61568818,154.75,154.71,6.4636]
[1727746078856,8.07778818,154.75,154.7,6.464]
[1727746079050,1.61578512,154.74,154.7,6.464]
[1727746079359,1.61578512,154.74,154.69,15.0018]
[1727746079557,23.776884,154.77,154.69,15.0018]
[1727746079864,6.4629,154.73,154.69,15.0018]
[1727746080041,1.61599435,154.72,154.69,15.0018]
[1727746082766,8.07929435,154.72,154.66,6.2048]
[1727746082944,8.07980714,154.71,154.66,12.6704]
[1727746083254,6.4645,154.69,154.65,21.6163]
[1727746083457,23.776884,154.73,154.65,15.1502]
[1727746083654,39.932084,154.75,154.65,15.1502]
[1727746083655,6.4633,154.72,154.67,6.4652]
[1727746084372,1.61612852,154.71,154.67,6.4652]
[1727746084550,6.4633,154.72,154.67,6.4652]
[1727746084973,1.61610321,154.71,154.67,6.4652]
[1727746085172,1.61610321,154.71,154.65,35.24872973]
[1727746085351,6.4637,154.71,154.66,6.4657]
[1727746085670,1.61618024,154.7,154.66,6.4657]
[1727746085866,6.4637,154.71,154.66,6.4657]
[1727746086068,6.4637,154.71,154.67,6.4653]
[1727746086672,6.4633,154.72,154.67,6.4653]
[1727746087362,1.61617533,154.71,154.67,6.4653]
[1727746089163,23.776884,154.75,154.65,15.1502]
[1727746089358,6.4628,154.73,154.68,6.4648]
[1727746089858,1.61617438,154.72,154.68,6.4648]
[1727746090066,8.07967438,154.72,154.66,6.4654]
[1727746090673,8.07967438,154.72,154.67,6.4652]
[1727746090857,1.61617438,154.72,154.65,15.1502]
[1727746091170,1.6161754,154.71,154.68,6.4648]
[1727746093476,1.6161754,154.71,154.67,6.4652]
[1727746093676,6.4633,154.72,154.67,6.4652]
[1727746093881,1.61615168,154.71,154.67,6.4652]
[1727746094679,23.776884,154.75,154.68,12.86846798]
[1727746095277,6.4625,154.74,154.7,6.4641]
[1727746095479,17.43176229,154.8,154.71,19.33206798]
[1727746095777,6.4612,154.77,154.72,6.4632]
[1727746097879,31.3977,154.84,154.74,12.86846798]
[1727746098060,6.46,154.8,154.74,19.33046798]
[1727746098263,8.07588794,154.79,154.74,19.33046798]
[1727746098581,6.4605,154.79,154.74,19.33046798]
[1727746098878,6.4594,154.82,154.76,6.4615]
[1727746099266,0.8418265,154.85,154.77,27.95616798]